fUST/lending_fUST_20240619
["ID","MTS","AMOUNT","RATE_DAILY","PERIOD"]
[329835870,1718730564584,-500.0,0.00016712,2]
[329835871,1718730564605,-500.0,0.00016712,2]
[329835872,1718730564631,-500.0,0.00016712,2]
[329835873,1718730564652,-500.0,0.00016712,2]
[329835874,1718730564673,-500.0,0.00016712,2]
[329835875,1718730564694,-161.00519817,0.00016712,2]
[329835876,1718730564714,-570.17,0.00016712,2]
[329835877,1718730564733,-403.53864272,0.00016712,2]
[329835878,1718730564754,-506.77970984,0.00016712,2]
[329835879,1718730564774,-500.0,0.00016712,2]
[329835880,1718730564794,-500.0,0.00016712,2]
[329835881,1718730564815,-500.0,0.00016712,2]
[329835882,1718730564835,-500.0,0.00016712,2]
[329835883,1718730564856,-500.0,0.00016712,2]
[329835884,1718730564878,-500.0,0.00016712,2]
[329835885,1718730564900,-500.0,0.00016712,2]
[329835886,1718730564922,-500.0,0.00016712,2]
[329835887,1718730564944,-500.0,0.00016712,2]
[329835888,1718730564967,-500.0,0.00016712,2]
[329835889,1718730565087,-500.0,0.00016712,2]
[329835890,1718730565108,-390.45258739,0.00016712,2]
[329835891,1718730565137,-500.0,0.00016712,2]
[329835892,1718730565160,-583.25592825,0.00016712,2]
[329835893,1718730565180,-1093.28,0.00016712,2]
[329835894,1718730565202,-500.0,0.00016712,2]
[329835895,1718730565224,-500.0,0.00016712,2]
[329835896,1718730565244,-500.0,0.00016712,2]
[329835897,1718730565266,-500.0,0.00016712,2]
[329835898,1718730565288,-567.49,0.00016712,2]
[329835899,1718730565310,-128.45571282,0.00016712,2]
[329835900,1718730565461,-1913.0454062,0.00016332,2]
[329835901,1718730565490,3073.70052274,0.00016437,2]
[329835902,1718730571745,500.0,0.00016438,2]
[329835903,1718730573798,505.55373611,0.00016438,2]
[329835904,1718730579599,500.0,0.00016438,2]
[329835905,1718730579936,520.2,0.00016438,2]
[329835906,1718730584899,-437.99424682,0.00016711,2]
[329835907,1718730588609,500.0,0.00016438,2]
[329835908,1718730588800,500.0,0.00016438,2]
[329835909,1718730591176,313.1740181,0.00016175,2]
[329835910,1718730599830,500.0,0.00016438,2]
[329835911,1718730602582,423.85,0.00016438,2]
[329835912,1718730611282,508.05,0.00016438,2]
[329835913,1718730629772,500.0,0.00016438,2]
[329835914,1718730630697,500.0,0.00016438,2]
[329835929,1718730633827,-500.0,0.00016661,2]
[329835931,1718730633836,-2635.70627592,0.00016711,2]
[329835933,1718730633846,-1913.0454062,0.00016711,2]
[329835935,1718730633857,-200.0,0.00016711,2]
[329835937,1718730633866,-371.54428718,0.00016712,2]
[329835939,1718730633876,-500.0,0.00016712,2]
[329835941,1718730633886,-500.0,0.00016712,2]
[329835943,1718730633895,-500.0,0.00016712,2]
[329835945,1718730633904,-297.60542502,0.00016712,2]
[329835947,1718730633916,-202.39457498,0.00016712,2]
[329835949,1718730633928,-500.0,0.00016712,2]
[329835951,1718730633937,-500.0,0.00016712,2]
[329835953,1718730633947,-500.0,0.00016712,2]
[329835955,1718730633956,-500.0,0.00016712,2]
[329835957,1718730633965,-503.35615081,0.00016712,2]
[329835959,1718730633974,-655.95196479,0.00016712,2]
[329835961,1718730633985,-378.25803521,0.00016712,2]
[329835963,1718730633995,-753.8389677,0.00016712,2]
[329835965,1718730634006,-298.6010323,0.00016712,2]
[329835967,1718730634015,-546.52,0.00016712,2]
[329835969,1718730634024,-500.0,0.00016712,2]
[329835971,1718730634033,-500.0,0.00016712,2]
[329835973,1718730634043,-359.5749677,0.00016712,2]
[329836072,1718730637970,500.0,0.00016438,2]
[329836124,1718730639442,-1913.0454062,0.0001666,2]
[329836125,1718730639453,-500.0,0.00016661,2]
[329836126,1718730639464,-2549.2450323,0.00016712,2]
[329836127,1718730639475,-255.96813162,0.00016712,2]
[329836128,1718730639485,-500.0,0.00016712,2]
[329836129,1718730639495,-502.53041828,0.00016712,2]
[329836130,1718730639504,-324.29241503,0.00016712,2]
[329836131,1718730639516,-175.70758497,0.00016712,2]
[329836132,1718730639527,-538.33453105,0.00016712,2]
[329836133,1718730639536,-74.03913184,0.00016712,2]
[329836134,1718730639572,-425.96086816,0.00016712,2]
[329836135,1718730639582,-468.23492948,0.00016712,2]
[329836136,1718730639594,-31.76507052,0.00016712,2]
[329836137,1718730639604,-399.61233953,0.00016712,2]
[329836138,1718730639614,-500.0,0.00016712,2]
[329836139,1718730639624,-500.0,0.00016712,2]
[329836140,1718730639635,-500.0,0.00016712,2]
[329836141,1718730639644,-500.0,0.00016712,2]
[329836142,1718730639654,-228.43,0.00016712,2]
[329836143,1718730639664,-920.49,0.00016712,2]
[329836144,1718730639675,-428.09992169,0.00016712,2]
[329836145,1718730639734,3604.70540801,0.0001656,2]
[329836157,1718730641308,-71.90007831,0.00016712,2]
[329836158,1718730641317,-503.16780487,0.00016712,2]
[329836159,1718730641327,-500.0,0.00016712,2]
[329836160,1718730641336,-210.78635815,0.00016712,2]
[329836161,1718730641350,-328.78364185,0.00016712,2]
[329836162,1718730641360,-174.22824212,0.00016712,2]
[329836163,1718730641373,-325.77175788,0.00016712,2]
[329836164,1718730641383,-500.0,0.00016712,2]
[329836165,1718730641392,-500.0,0.00016712,2]
[329836166,1718730641401,-604.18,0.00016712,2]
[329836167,1718730641413,-500.0,0.00016712,2]
[329836168,1718730641425,-500.0,0.00016712,2]
[329836169,1718730641434,-500.0,0.00016712,2]
[329836170,1718730641445,-500.0,0.00016712,2]
[329836171,1718730641456,-500.0,0.00016712,2]
[329836172,1718730641466,-515.62887072,0.00016712,2]
[329836173,1718730641475,-500.0,0.00016712,2]
[329836174,1718730641484,-500.0,0.00016712,2]
[329836175,1718730641493,-500.0,0.00016712,2]
[329836176,1718730641503,-500.0,0.00016712,2]
[329836177,1718730641513,-520.2,0.00016712,2]
[329836178,1718730641522,-500.0,0.00016712,2]
[329836179,1718730641532,-508.05,0.00016712,2]
[329836180,1718730641541,-500.0,0.00016712,2]
[329836181,1718730641550,-500.0,0.00016986,2]
[329836182,1718730641559,-500.0,0.00016986,2]
[329836183,1718730641568,-500.0,0.00016986,2]
[329836184,1718730641577,-500.0,0.00016986,2]
[329836185,1718730641587,-500.0,0.00016986,2]
[329836186,1718730641596,-500.0,0.00016986,2]
[329836187,1718730641605,-500.0,0.00016986,2]
[329836188,1718730641615,-500.0,0.00016986,2]
[329836189,1718730641624,-548.67951675,0.00016986,2]
[329836190,1718730641634,-477.5,0.00016986,2]
[329836191,1718730641643,-432.77,0.00016986,2]
[329836192,1718730641652,-500.0,0.00016986,2]
[329836193,1718730641662,-500.0,0.00016986,2]
[329836194,1718730641672,-1093.28,0.00016986,2]
[329836195,1718730641684,-643.39,0.00016986,2]
[329836196,1718730641694,-506.11988955,0.00016986,2]
[329836197,1718730641703,-511.94,0.00016986,2]
[329836198,1718730641715,-500.0,0.00016986,2]
[329836199,1718730641729,-1034.21,0.00016986,2]
[329836200,1718730641741,-1052.44,0.00016986,2]
[329836201,1718730641754,-2908.82,0.00016986,2]
[329836202,1718730641766,-382.68424904,0.00016986,2]
[329836203,1718730641778,-542.35,0.00016986,2]
[329836204,1718730641789,-500.0,0.00016986,2]
[329836205,1718730641800,-472.37122172,0.00016986,2]
[329836206,1718730641810,-500.0,0.00016986,2]
[329836207,1718730641822,-920.49,0.00016986,2]
[329836208,1718730641834,-500.0,0.00016986,2]
[329836209,1718730641845,-500.0,0.00016986,2]
[329836210,1718730641857,-500.0,0.00016986,2]
[329836211,1718730641869,-500.0,0.00016986,2]
[329836212,1718730641881,-500.0,0.00016986,2]
[329836213,1718730641892,-500.0,0.00016986,2]
[329836214,1718730641905,-500.0,0.00016986,2]
[329836215,1718730641916,-520.2,0.00016986,2]
[329836216,1718730641929,-181.14839902,0.00016986,2]
[329836217,1718730641942,-508.05,0.00016986,2]
[329836218,1718730641954,-238.02,0.00016986,2]
[329836219,1718730641966,-500.0,0.0001726,2]
[329836220,1718730641978,-271.30636402,0.0001726,2]
[329836221,1718730641989,-500.0,0.0001726,2]
[329836222,1718730642000,-500.0,0.0001726,2]
[329836223,1718730642011,-500.0,0.0001726,2]
[329836224,1718730642023,-1093.28,0.0001726,2]
[329836225,1718730642033,-500.0,0.0001726,2]
[329836226,1718730642045,-1034.21,0.0001726,2]
[329836227,1718730642057,-1052.44,0.0001726,2]
[329836228,1718730642069,-2908.82,0.0001726,2]
[329836229,1718730642082,-500.0,0.0001726,2]
[329836230,1718730642093,-920.49,0.0001726,2]
[329836231,1718730642104,-601.02,0.0001726,2]
[329836232,1718730642116,-500.0,0.0001726,2]
[329836233,1718730642127,-173.78522449,0.0001726,2]
[329836234,1718730642136,-223.12,0.0001726,2]
[329836235,1718730642147,-520.2,0.0001726,2]
[329836236,1718730642159,-508.05,0.0001726,2]
[329836237,1718730642169,-2408.02,0.00017483,2]
[329836238,1718730642183,-500.0,0.00017483,2]
[329836239,1718730642194,-500.0,0.00017483,2]
[329836240,1718730642204,-536.60735123,0.00017534,2]
[329836241,1718730642215,-500.0,0.00017534,2]
[329836242,1718730642226,-500.0,0.00017534,2]
[329836243,1718730642237,-1093.28,0.00017534,2]
[329836244,1718730642248,-1034.21,0.00017534,2]
[329836245,1718730642261,-1052.44,0.00017534,2]
[329836246,1718730642272,-2908.82,0.00017534,2]
[329836247,1718730642285,-500.0,0.00017534,2]
[329836248,1718730642298,-920.49,0.00017534,2]
[329836249,1718730642309,-500.0,0.00017534,2]
[329836250,1718730642320,-520.2,0.00017534,2]
[329836251,1718730642330,-508.05,0.00017534,2]
[329836252,1718730642340,-560.03,0.00017662,2]
[329836253,1718730642354,-500.0,0.00017662,2]
[329836254,1718730642365,-1285.47,0.00017664,2]
[329836255,1718730642376,-500.0,0.00017664,2]
[329836256,1718730642387,-560.03,0.00017665,2]
[329836257,1718730642400,-500.0,0.00017665,2]
[329836258,1718730642412,-2408.02,0.00017665,2]
[329836259,1718730642424,-500.0,0.00017666,2]
[329836260,1718730642438,-500.0,0.00017666,2]
[329836261,1718730642449,-500.0,0.00017666,2]
[329836262,1718730642459,-503.77243645,0.00017666,2]
[329836263,1718730642469,-394.29355289,0.00017666,2]
[329836264,1718730642480,-500.0,0.00017666,2]
[329836265,1718730642491,-500.0,0.00017666,2]
[329836266,1718730642501,-553.18832344,0.00017666,2]
[329836267,1718730642512,-500.81332592,0.00017666,2]
[329836268,1718730642524,-502.4028747,0.00017666,2]
[329836269,1718730642534,-506.37126183,0.00017666,2]
[329836270,1718730642545,-500.0,0.00017666,2]
[329836271,1718730642555,-284.71803163,0.00017666,2]
[329836272,1718730642564,-502.75472838,0.00017666,2]
[329836273,1718730642575,-500.0,0.00017666,2]
[329836274,1718730642584,-528.35887904,0.00017666,2]
[329836275,1718730642595,-151.67675237,0.00017666,2]
[329836276,1718730642609,-348.32324763,0.00017666,2]
[329836277,1718730642620,-500.94438608,0.00017666,2]
[329836278,1718730642630,-500.0,0.00017666,2]
[329836279,1718730642641,-500.41643595,0.00017666,2]
[329836280,1718730642652,-560.03,0.00017666,2]
[329836281,1718730642663,-500.0,0.00017666,2]
[329836282,1718730642674,-500.0,0.00017666,2]
[329836283,1718730642689,-500.0,0.00017666,2]
[329836284,1718730642700,-183.7189325,0.00017666,2]
[329836285,1718730642714,-316.2810675,0.00017666,2]
[329836286,1718730642724,-597.22,0.00017666,2]
[329836287,1718730642735,-500.0,0.00017667,2]
[329836288,1718730642747,-500.0,0.00017667,2]
[329836289,1718730642757,-560.03,0.00017668,2]
[329836290,1718730642768,-500.0,0.00017668,2]
[329836291,1718730642779,-310.71,0.00017808,2]
[329836292,1718730642790,-500.0,0.00017808,2]
[329836293,1718730642801,-1093.28,0.00017808,2]
[329836294,1718730642812,-1034.21,0.00017808,2]
[329836295,1718730642823,-1052.44,0.00017808,2]
[329836296,1718730642834,-2908.82,0.00017808,2]
[329836297,1718730642844,-500.0,0.00017808,2]
[329836298,1718730642855,-920.49,0.00017808,2]
[329836299,1718730642866,-500.0,0.00017808,2]
[329836300,1718730642877,-520.2,0.00017808,2]
[329836301,1718730642888,-508.05,0.00017808,2]
[329836302,1718730642898,-1285.47,0.00017938,2]
[329836303,1718730642909,-560.03,0.00017939,2]
[329836304,1718730642919,-500.0,0.00017939,2]
[329836305,1718730642934,-500.0,0.0001794,2]
[329836306,1718730642945,-500.0,0.0001794,2]
[329836307,1718730642955,-503.30731321,0.0001794,2]
[329836308,1718730642965,-501.75107796,0.0001794,2]
[329836309,1718730642975,-326.52014358,0.0001794,2]
[329836310,1718730642985,-500.0,0.0001794,2]
[329836311,1718730642995,-500.0,0.0001794,2]
[329836312,1718730643006,-500.0,0.0001794,2]
[329836313,1718730643016,-500.0,0.00018082,2]
[329836314,1718730643026,-1093.28,0.00018082,2]
[329836315,1718730643037,-1034.21,0.00018082,2]
[329836316,1718730643047,-1052.44,0.00018082,2]
[329836317,1718730643058,-2908.82,0.00018082,2]
[329836318,1718730643069,-500.0,0.00018082,2]
[329836319,1718730643079,-920.49,0.00018082,2]
[329836320,1718730643090,-500.0,0.00018082,2]
[329836322,1718730643225,-520.2,0.00018082,2]
[329836323,1718730643240,-508.05,0.00018082,2]
[329836324,1718730643250,-168.74529087,0.00018114,2]
[329836325,1718730643259,-2408.02,0.00018211,2]
[329836326,1718730643268,-1285.47,0.00018212,2]
[329836327,1718730643277,-500.0,0.00018214,2]
[329836328,1718730643286,-151.0,0.00018214,2]
[329836329,1718730643295,-500.0,0.00018305,2]
[329836330,1718730643304,-500.0,0.00018305,2]
[329836331,1718730643313,-560.03,0.00018326,2]
[329836332,1718730643323,-500.0,0.00018326,2]
[329836333,1718730643332,-500.0,0.00018356,2]
[329836334,1718730643341,-1093.28,0.00018356,2]
[329836335,1718730643351,-1034.21,0.00018356,2]
[329836336,1718730643364,-1052.44,0.00018356,2]
[329836337,1718730643374,-2908.82,0.00018356,2]
[329836338,1718730643384,-500.0,0.00018356,2]
[329836341,1718730643395,-920.49,0.00018356,2]
[329836344,1718730643405,-500.0,0.00018356,2]
[329836346,1718730643414,-520.2,0.00018356,2]
[329836349,1718730643423,-508.05,0.00018356,2]
[329836351,1718730643437,-1285.47,0.00018486,2]
[329836354,1718730643446,-560.03,0.00018534,2]
[329836357,1718730643455,-500.0,0.00018534,2]
[329836360,1718730643464,-554.80977633,0.0001863,2]
[329836364,1718730643474,-644.60678925,0.0001863,2]
[329836366,1718730643487,-448.67321075,0.0001863,2]
[329836368,1718730643497,-1034.21,0.0001863,2]
[329836369,1718730643507,-1052.44,0.0001863,2]
[329836370,1718730643516,-2908.82,0.0001863,2]
[329836371,1718730643526,-500.0,0.0001863,2]
[329836372,1718730643535,-920.49,0.0001863,2]
[329836373,1718730643545,-500.0,0.0001863,2]
[329836374,1718730643554,-520.2,0.0001863,2]
[329836375,1718730643564,-508.05,0.0001863,2]
[329836376,1718730643574,-560.03,0.00018667,2]
[329836377,1718730643583,-500.0,0.00018667,2]
[329836380,1718730643593,-1285.47,0.0001876,2]
[329836382,1718730643603,-386.12374447,0.000189,2]
[329836383,1718730643612,-1093.28,0.00018904,2]
[329836384,1718730643622,-1034.21,0.00018904,2]
[329836385,1718730643631,-1052.44,0.00018904,2]
[329836386,1718730643641,-2908.82,0.00018904,2]
[329836387,1718730643651,-500.0,0.00018904,2]
[329836388,1718730643661,-920.49,0.00018904,2]
[329836389,1718730643671,-500.0,0.00018904,2]
[329836390,1718730643683,-520.2,0.00018904,2]
[329836391,1718730643693,-508.05,0.00018904,2]
[329836392,1718730643701,-500.0,0.00018998,2]
[329836393,1718730643710,-500.0,0.00018998,2]
[329836394,1718730643719,-560.03,0.00018999,2]
[329836395,1718730643729,-560.03,0.00018999,2]
[329836396,1718730643739,-560.03,0.00018999,2]
[329836397,1718730643748,-500.0,0.00018999,2]
[329836398,1718730643758,-500.0,0.00018999,2]
[329836399,1718730643767,-608.74316046,0.00018999,2]
[329836401,1718730643777,-2408.02,0.00019033,2]
[329836403,1718730643786,-1285.47,0.00019034,2]
[329836405,1718730643795,-622.17502968,0.00019062,2]
[329836406,1718730643804,-11845.67308276,0.00019091,2]
[329836407,1718730643817,-8154.32691724,0.00019091,2]
[329836408,1718730643828,-247.50056,0.00019091,2]
[329836409,1718730643839,-371.623912,0.00019096,2]
[329836410,1718730643849,-153.0,0.00019096,2]
[329836411,1718730643858,-799.27542712,0.00019178,15]
[329836412,1718730643867,-1093.28,0.00019178,2]
[329836413,1718730643877,-1034.21,0.00019178,2]
[329836414,1718730643887,-1052.44,0.00019178,2]
[329836415,1718730643898,-2908.82,0.00019178,2]
[329836416,1718730643908,-500.0,0.00019178,2]
[329836417,1718730643918,-920.49,0.00019178,2]
[329836418,1718730643930,-500.0,0.00019178,2]
[329836419,1718730643940,-520.2,0.00019178,2]
[329836420,1718730643949,-508.05,0.00019178,2]
[329836421,1718730643959,-165.333688,0.00019178,2]
[329836422,1718730643968,-560.03,0.0001926,2]
[329836423,1718730643978,-500.0,0.00019307,2]
[329836424,1718730643987,-500.0,0.00019307,2]
[329836426,1718730643997,-1285.47,0.00019308,2]
[329836427,1718730644006,-2408.02,0.0001933,2]
[329836428,1718730644016,-1093.28,0.00019452,2]
[329836429,1718730644027,-1034.21,0.00019452,2]
[329836430,1718730644036,-1052.44,0.00019452,2]
[329836431,1718730644046,-2908.82,0.00019452,2]
[329836432,1718730644055,-500.0,0.00019452,2]
[329836433,1718730644065,-920.49,0.00019452,2]
[329836434,1718730644074,-500.0,0.00019452,2]
[329836435,1718730644085,-284.60307408,0.00019452,2]
[329836436,1718730644113,500.0,0.00016438,2]
[329836437,1718730644279,-515.55743395,0.00016712,2]
[329836438,1718730644288,-235.59692592,0.00019452,2]
[329836439,1718730644298,-508.05,0.00019452,2]
[329836440,1718730644307,-432.20123839,0.00019474,2]
[329836442,1718730644316,-560.03,0.00019493,2]
[329836444,1718730644333,-382.473586,0.00019493,2]
[329836445,1718730644353,-177.556414,0.00019493,2]
[329836446,1718730644366,-500.0,0.00019493,2]
[329836447,1718730644376,-500.0,0.00019493,2]
[329836448,1718730644386,-581.42144293,0.00019494,2]
[329836449,1718730644396,-500.0,0.00019494,2]
[329836450,1718730644408,-648.67370325,0.00019494,2]
[329836451,1718730644418,-423.53096357,0.00019494,2]
[329836452,1718730644429,-500.0,0.00019494,2]
[329836453,1718730644438,-467.24928364,0.00019494,2]
[329836454,1718730644448,-500.0,0.00019494,2]
[329836455,1718730644457,-511.29917964,0.00019494,2]
[329836456,1718730644467,-648.39355605,0.00019494,2]
[329836457,1718730644476,-507.22682025,0.00019494,2]
[329836458,1718730644486,-506.03558681,0.00019494,2]
[329836459,1718730644496,-500.0,0.00019494,2]
[329836460,1718730644506,-500.0,0.00019494,2]
[329836461,1718730644515,-422.12276573,0.00019494,2]
[329836462,1718730644574,-83.66876632,0.00019494,2]
[329836463,1718730644584,-16.15431266,0.00019494,2]
[329836464,1718730644596,-483.84568734,0.00019494,2]
[329836465,1718730644606,-34.22687307,0.00019494,2]
[329836471,1718730646575,1475.24,0.00016438,2]
[329836480,1718730647117,-1475.24,0.00016712,2]
[329836482,1718730647127,-465.77312693,0.00019494,2]
[329836484,1718730647137,-500.0,0.00019494,2]
[329836486,1718730647146,-294.41130118,0.00019494,2]
[329836498,1718730647304,-213.76692848,0.00019494,2]
[329836499,1718730647313,-509.84284207,0.00019494,2]
[329836500,1718730647323,-509.35724193,0.00019494,2]
[329836501,1718730647332,-500.0,0.00019494,2]
[329836502,1718730647342,-500.0,0.00019494,2]
[329836503,1718730647352,-501.66095461,0.00019494,2]
[329836504,1718730647365,-2408.02,0.00019581,2]
[329836505,1718730647375,-1285.47,0.00019582,2]
[329836506,1718730647384,-1093.28,0.00019726,2]
[329836507,1718730647394,-1034.21,0.00019726,2]
[329836508,1718730647404,-1052.44,0.00019726,2]
[329836509,1718730647413,-500.0,0.00019726,2]
[329836510,1718730647422,-920.49,0.00019726,2]
[329836511,1718730647435,-500.0,0.00019726,2]
[329836512,1718730647445,-520.2,0.00019726,2]
[329836513,1718730647454,-395.3720329,0.00019726,2]
[329836514,1718730650424,500.0,0.00016438,2]
[329836515,1718730651046,511.73870378,0.00016438,2]
[329836516,1718730657742,90.90953983,0.00016438,2]
[329836526,1718730726816,1757.49191809,9.999e-05,4]
[329836527,1718730726837,1365.70926011,9.999e-05,4]
[329836538,1718730792352,475.16,0.00010959,2]
[329836921,1718731645189,-223.55154447,0.00014411,2]
[329836922,1718731646121,-1744.07668749,0.00014411,2]
[329836934,1718731731993,-441.71409361,0.0001441,2]
[329836935,1718731732044,-441.71409361,0.0001441,2]
[329836936,1718731732096,-344.00876126,0.0001441,2]
[329836942,1718731746117,-685.60845772,0.0001441,2]
[329836943,1718731746138,-218.7235122,0.00014419,2]
[329836944,1718731746160,-3073.70052274,0.00014434,2]
[329836945,1718731746182,-540.79286292,0.00014435,2]
[329836946,1718731750126,-1247.03028718,0.00014435,2]
[329836947,1718731750148,-250.0,0.00014486,2]
[329836948,1718731750168,-1162.9721183,0.00014511,2]
[329836949,1718731750188,-733.6112571,0.0001453,2]
[329836950,1718731750208,-659.9278516,0.00014664,2]
[329836951,1718731750228,-399.75433253,0.00015336,2]
[329836952,1718731754150,-183.28840626,0.00016338,2]
[329836953,1718731754170,-300.0,0.00016431,2]
[329836954,1718731754190,-287.0,0.00016431,2]
[329836955,1718731754210,-265.87919368,0.00016432,2]
[329836956,1718731754229,-2477.72614275,0.00016432,2]
[329836957,1718731754253,-611.07175539,0.00016432,4]
[329836958,1718731754273,-14425.74273108,0.00016435,2]
[329836959,1718731754292,-9359.85669635,0.00016436,2]
[329836961,1718731758199,317.81400378,9.999e-05,2]
[329836964,1718731816360,1432.7450532,9.999e-05,2]
[329836983,1718731832067,-612.735,0.00016337,2]
[329836999,1718731838144,-450.50996181,0.00016337,2]
[329837048,1718731838639,-849.80044439,0.00016337,2]
[329837050,1718731838649,-823.07433215,0.00016338,2]
[329837052,1718731838659,-3073.70052274,0.00016433,2]
[329837054,1718731838669,-287.29457683,0.00016434,2]
[329837057,1718731838679,-1317.78877904,0.00016434,2]
[329837061,1718731838689,-300.0,0.00016435,2]
[329837064,1718731838698,-44.67845312,0.00016436,2]
[329837101,1718731841538,-15059.97236822,0.00016436,2]
[329837102,1718731841548,-500.0,0.00016438,2]
[329837103,1718731841568,-500.0,0.00016438,2]
[329837104,1718731841577,-501.98723248,0.00016438,2]
[329837105,1718731841587,-500.0,0.00016438,2]
[329837106,1718731841596,-391.20449625,0.00016438,2]
[329837107,1718731841607,-108.79550375,0.00016438,2]
[329837108,1718731841616,-500.07468102,0.00016438,2]
[329837109,1718731841626,-500.0,0.00016438,2]
[329837110,1718731841635,-500.0,0.00016438,2]
[329837111,1718731841645,-500.0,0.00016438,2]
[329837112,1718731841654,-500.0,0.00016438,2]
[329837113,1718731841664,-500.0,0.00016438,2]
[329837114,1718731841673,-500.0,0.00016438,2]
[329837115,1718731841683,-500.0,0.00016438,2]
[329837116,1718731841693,-519.29841364,0.00016438,2]
[329837117,1718731841703,-500.0,0.00016438,2]
[329837118,1718731841713,-224.80720622,0.00016438,2]
[329837119,1718731841722,-500.0,0.00016438,2]
[329837120,1718731841732,-500.0,0.00016438,2]
[329837121,1718731841741,-500.0,0.00016438,2]
[329837122,1718731841752,-500.0,0.00016438,2]
[329837123,1718731841761,-500.0,0.00016438,2]
[329837124,1718731841772,-647.2507586,0.00016438,2]
[329837125,1718731841782,-500.0,0.00016438,2]
[329837126,1718731841796,-500.0,0.00016438,2]
[329837127,1718731841813,-500.0,0.00016438,2]
[329837128,1718731841822,-500.0,0.00016438,2]
[329837129,1718731841834,-500.0,0.00016438,2]
[329837130,1718731841842,-500.0,0.00016438,2]
[329837131,1718731841851,-500.0,0.00016438,2]
[329837132,1718731841860,-502.17334438,0.00016438,2]
[329837133,1718731841869,-500.0,0.00016438,2]
[329837134,1718731841878,-500.0,0.00016438,2]
[329837135,1718731841887,-500.0,0.00016438,2]
[329837136,1718731841896,-500.0,0.00016438,2]
[329837137,1718731841907,-500.0,0.00016438,2]
[329837138,1718731841917,-500.0,0.00016438,2]
[329837139,1718731841926,-500.0,0.00016438,2]
[329837140,1718731841936,-500.0,0.00016438,2]
[329837141,1718731841946,-500.0,0.00016438,2]
[329837142,1718731841956,-500.0,0.00016438,2]
[329837143,1718731841966,-506.90361651,0.00016438,2]
[329837144,1718731841976,-282.64365373,0.00016438,2]
[329837145,1718731841985,-509.48965602,0.00016438,2]
[329837146,1718731841995,-500.0,0.00016438,2]
[329837147,1718731842005,-500.0,0.00016438,2]
[329837148,1718731842015,-500.0,0.00016438,2]
[329837149,1718731842025,-237.2821459,0.00016438,2]
[329837150,1718731842035,-520.64084309,0.00016438,2]
[329837151,1718731842044,-500.0,0.00016438,2]
[329837152,1718731842059,-500.0,0.00016438,2]
[329837153,1718731842069,-500.0,0.00016438,2]
[329837154,1718731842078,-500.0,0.00016438,2]
[329837155,1718731842087,-500.0,0.00016438,2]
[329837156,1718731842096,-500.0,0.00016438,2]
[329837157,1718731842106,-500.0,0.00016438,2]
[329837158,1718731842115,-513.03986068,0.00016438,2]
[329837159,1718731842124,-500.0,0.00016438,2]
[329837160,1718731842133,-500.0,0.00016438,2]
[329837161,1718731842142,-500.0,0.00016438,2]
[329837162,1718731842152,-500.0,0.00016438,2]
[329837163,1718731842162,-500.0,0.00016438,2]
[329837164,1718731842173,-500.0,0.00016438,2]
[329837165,1718731842182,-500.0,0.00016438,2]
[329837166,1718731842192,-500.0,0.00016438,2]
[329837167,1718731842202,-500.0,0.00016438,2]
[329837168,1718731842212,-500.0,0.00016438,2]